fUSD/lending_fUSD_20250616
["ID","MTS","AMOUNT","RATE_DAILY","PERIOD"]
[366096996,1750060255255,-490.0,0.00016602,2]
[366096997,1750060255264,-490.0,0.00016602,2]
[366096998,1750060255274,-918.92,0.00016602,2]
[366096999,1750060255284,-2851.02,0.00016602,2]
[366097000,1750060255293,-490.0,0.00016602,2]
[366097001,1750060255303,-490.0,0.00016602,2]
[366097002,1750060255313,-490.0,0.00016602,2]
[366097003,1750060255323,-490.0,0.00016602,2]
[366097004,1750060255332,-780.67,0.00016602,2]
[366097005,1750060255342,-1890.33,0.00016602,2]
[366097006,1750060255351,-490.0,0.00016602,2]
[366097007,1750060255361,-1062.55,0.00016602,2]
[366097008,1750060255370,-490.0,0.00016602,2]
[366097009,1750060255380,-2325.76,0.00016602,2]
[366097010,1750060255389,-151.673723,0.00016602,2]
[366097011,1750060255399,-4434.53,0.00016602,2]
[366097012,1750060255409,-5589.25,0.00016602,2]
[366097013,1750060255423,-490.0,0.00016602,2]
[366097014,1750060255432,-490.0,0.00016602,2]
[366097015,1750060255442,-490.0,0.00016602,2]
[366097016,1750060255451,-490.0,0.00016602,2]
[366097017,1750060255461,-1097.11,0.00016602,2]
[366097018,1750060255471,-2557.96,0.00016602,2]
[366097019,1750060255481,-618.11,0.00016602,2]
[366097020,1750060255491,-490.0,0.00016602,2]
[366097021,1750060255501,-151.0,0.00016602,2]
[366097022,1750060255513,-490.0,0.00016602,2]
[366097023,1750060255523,-22984.15,0.00016602,2]
[366097024,1750060255532,-1869.4,0.00016602,2]
[366097025,1750060255542,-528.61,0.00016602,2]
[366097026,1750060255551,-1657.81,0.00016602,2]
[366097027,1750060255562,-2737.55,0.00016602,2]
[366097028,1750060255572,-562.93,0.00016602,2]
[366097029,1750060255582,-490.0,0.00016602,2]
[366097030,1750060255592,-490.0,0.00016602,2]
[366097031,1750060255601,-578.57,0.00016602,2]
[366097032,1750060255611,-490.0,0.00016602,2]
[366097033,1750060255620,-7832.21,0.00016602,2]
[366097034,1750060255630,-3901.14,0.00016602,2]
[366097035,1750060255639,-2636.0,0.00016602,2]
[366097036,1750060255649,-1123.79,0.00016602,2]
[366097037,1750060255770,-6361.94,0.00016602,2]
[366097038,1750060255780,-1007.51,0.00016602,2]
[366097039,1750060255789,-860.99,0.00016602,2]
[366097040,1750060255799,-10038.92,0.00016602,2]
[366097041,1750060255809,-1818.32,0.00016602,2]
[366097042,1750060255818,-738.71,0.00016602,2]
[366097043,1750060255827,-2250.59,0.00016602,2]
[366097044,1750060255836,-1499.17,0.00016602,2]
[366097045,1750060255846,-703.03,0.00016602,2]
[366097046,1750060255855,-1971.39,0.00016602,2]
[366097047,1750060255864,-1742.64,0.00016602,2]
[366097048,1750060255874,-1159.98,0.00016602,2]
[366097049,1750060255884,-1557.67,0.00016602,2]
[366097050,1750060255893,-914.9,0.00016602,2]
[366097051,1750060255902,-490.0,0.00016602,2]
[366097052,1750060255912,-490.0,0.00016602,2]
[366097053,1750060255921,-4089.98,0.00016602,2]
[366097054,1750060255931,-830.71,0.00016602,2]
[366097055,1750060255940,-490.0,0.00016602,2]
[366097056,1750060255950,-10901.68,0.00016602,2]
[366097057,1750060255960,-483.75805036,0.00016602,2]
[366097058,1750060255970,-829.28,0.00016602,2]
[366097059,1750060255980,-155.701992,0.00016602,2]
[366097060,1750060255990,-490.0,0.00016602,2]
[366097061,1750060256001,-1121.58,0.00016602,2]
[366097062,1750060256011,-4040.58,0.00016602,2]
[366097063,1750060256021,-490.0,0.00016602,2]
[366097064,1750060256031,-345.873211,0.00016602,2]
[366097065,1750060256041,-510.15,0.00016602,2]
[366097066,1750060256050,-155.701992,0.00016602,2]
[366097067,1750060256060,-767.31,0.00016602,2]
[366097068,1750060256070,-345.873211,0.00016602,2]
[366097069,1750060256079,-490.0,0.00016602,2]
[366097070,1750060256089,-854.11,0.00016602,2]
[366097071,1750060256098,-900.73,0.00016602,2]
[366097072,1750060256108,-1273.95,0.00016602,2]
[366097073,1750060256118,-3710.28,0.00016602,2]
[366097074,1750060256128,-490.0,0.00016602,2]
[366097075,1750060256143,-506.8,0.00016602,2]
[366097076,1750060256152,-1911.72,0.00016602,2]
[366097077,1750060256162,-491.97,0.00016602,2]
[366097078,1750060256172,-1272.0,0.00016602,2]
[366097079,1750060256182,-490.0,0.00016602,2]
[366097080,1750060256191,-1122.97,0.00016602,2]
[366097081,1750060256200,-6292.99,0.00016602,2]
[366097082,1750060256210,-490.0,0.00016602,2]
[366097083,1750060256220,-490.0,0.00016602,2]
[366097084,1750060256230,-3175.61,0.00016602,2]
[366097085,1750060256239,-685.357316,0.00016602,2]
[366097086,1750060256248,-1638.28,0.00016602,2]
[366097087,1750060256259,-2576.54,0.00016602,2]
[366097088,1750060256269,-800.38,0.00016602,2]
[366097089,1750060256281,-664.1,0.00016602,2]
[366097090,1750060256290,-1285.52,0.00016602,2]
[366097091,1750060256300,-685.357316,0.00016602,2]
[366097092,1750060256310,-905.24,0.00016602,2]
[366097093,1750060256319,-3207.13,0.00016602,2]
[366097094,1750060256328,-151.0,0.00016602,2]
[366097095,1750060256338,-1367.31,0.00016602,2]
[366097096,1750060256347,-1622.92,0.00016602,2]
[366097097,1750060256357,-324.641924,0.00016602,2]
[366097098,1750060256366,-490.0,0.00016602,2]
[366097099,1750060256375,-1603.56,0.00016602,2]
[366097100,1750060256385,-569.57,0.00016602,2]
[366097101,1750060256395,-1349.8,0.00016602,2]
[366097102,1750060256404,-1226.02,0.00016602,2]
[366097103,1750060256416,-324.641924,0.00016602,2]
[366097104,1750060256430,-536.57,0.00016602,2]
[366097105,1750060256440,-251.827914,0.00016602,2]
[366097106,1750060256449,-490.0,0.00016602,2]
[366097107,1750060256458,-1340.92,0.00016602,2]
[366097108,1750060256468,-1606.45,0.00016602,2]
[366097109,1750060256477,-151.0,0.00016602,2]
[366097110,1750060256487,-251.827914,0.00016602,2]
[366097111,1750060256499,-151.0,0.00016602,2]
[366097112,1750060256508,-151.0,0.00016602,2]
[366097113,1750060256518,-717.5,0.00016602,2]
[366097114,1750060256528,-151.0,0.00016602,2]
[366097115,1750060256537,-151.0,0.00016602,2]
[366097116,1750060256547,-202.0,0.00016623,3]
[366097117,1750060256557,-500.0,0.00016627,2]
[366097118,1750060256566,-200.0,0.00016627,2]
[366097119,1750060256576,-500.0,0.0001663,2]
[366097120,1750060256586,-200.0,0.0001663,2]
[366097121,1750060256595,-500.0,0.00016632,2]
[366097122,1750060256605,-200.0,0.00016632,2]
[366097123,1750060256614,-150.0,0.00016657,2]
[366097124,1750060256624,-150.0,0.00016657,2]
[366097125,1750060256633,-150.0,0.00016657,2]
[366097126,1750060256643,-150.0,0.00016657,2]
[366097127,1750060256652,-196.94442383,0.00016657,2]
[366097128,1750060256662,-150.0,0.00016657,2]
[366097129,1750060256671,-150.0,0.00016657,2]
[366097130,1750060256680,-150.0,0.00016657,2]
[366097131,1750060256690,-150.0,0.00016657,2]
[366097132,1750060256700,-150.0,0.00016657,2]
[366097133,1750060256710,-250.0,0.00016657,2]
[366097134,1750060256719,-500.0,0.00016657,2]
[366097135,1750060256729,-150.0,0.00016657,2]
[366097136,1750060256738,-150.0,0.00016657,2]
[366097137,1750060256748,-150.28922437,0.00016657,2]
[366097138,1750060256757,-150.0,0.00016657,2]
[366097139,1750060256768,-150.0,0.00016657,2]
[366097140,1750060256778,-150.0,0.00016657,2]
[366097141,1750060256788,-153.4650401,0.00016657,2]
[366097142,1750060256798,-150.0,0.00016657,2]
[366097143,1750060256807,-150.0,0.00016657,2]
[366097144,1750060256817,-150.0,0.00016657,2]
[366097145,1750060256827,-156.88692503,0.00016657,2]
[366097146,1750060256836,-150.97098651,0.00016657,2]
[366097147,1750060256846,-150.0,0.00016657,2]
[366097148,1750060256856,-223.9829634,0.00016657,2]
[366097149,1750060256866,-3333.0,0.0001666,2]
[366097150,1750060256877,-946.0,0.0001666,2]
[366097151,1750060256887,-637.0,0.0001666,2]
[366097152,1750060256896,-802.0,0.0001666,2]
[366097153,1750060256906,-558.0,0.0001666,2]
[366097154,1750060256916,-953.82,0.0001666,2]
[366097155,1750060256925,-1277.0,0.0001666,2]
[366097156,1750060256935,-2003.0,0.0001666,2]
[366097157,1750060256944,-590.0,0.0001666,2]
[366097158,1750060256954,-1674.0,0.0001666,2]
[366097159,1750060256963,-7112.0,0.0001666,2]
[366097160,1750060256973,-4090.0,0.0001666,2]
[366097161,1750060256982,-854.0,0.0001666,2]
[366097162,1750060256992,-884.0,0.0001666,2]
[366097163,1750060257002,-150.0,0.0001666,2]
[366097164,1750060257012,-203.665,0.0001666,2]
[366097165,1750060257021,-1500.0,0.00016661,2]
[366097166,1750060257031,-28250.2906,0.00016666,2]
[366097167,1750060257041,-182.79216575,0.00016666,2]
[366097168,1750060257051,-3982.02681534,0.00016667,2]
[366097169,1750060257061,-155.45440738,0.00016667,2]
[366097170,1750060257071,-3290.94413456,0.00016667,2]
[366097171,1750060257085,-2377.2465,0.00016667,2]
[366097172,1750060257095,-500.0,0.00016684,2]
[366097173,1750060257105,-150.0,0.00016684,2]
[366097174,1750060257114,-150.0,0.00016684,2]
[366097175,1750060257123,-150.0,0.00016684,2]
[366097176,1750060257133,-81270.94934742,0.000167,2]
[366097177,1750060257143,-500.0,0.000167,6]
[366097178,1750060257153,-168.0,0.00016706,2]
[366097179,1750060257163,-192.0,0.00016712,2]
[366097180,1750060257172,-150.0,0.00016712,2]
[366097181,1750060257182,-150.0,0.00016712,2]
[366097182,1750060257192,-182.79216575,0.00016725,2]
[366097183,1750060257202,-250.0,0.00016739,2]
[366097184,1750060257211,-150.0,0.00016739,2]
[366097185,1750060257222,-300.0,0.00016751,2]
[366097186,1750060257233,-300.0,0.00016751,2]
[366097187,1750060257242,-300.0,0.00016752,2]
[366097188,1750060257252,-300.0,0.00016752,2]
[366097189,1750060257261,-300.0,0.00016752,2]
[366097190,1750060257271,-668.83650048,0.00016752,2]
[366097191,1750060257281,-300.0,0.00016752,2]
[366097192,1750060257291,-300.0,0.00016752,2]
[366097193,1750060257301,-151.0,0.00016752,2]
[366097194,1750060257311,-151.0,0.00016752,2]
[366097195,1750060257321,-151.0,0.00016752,2]
[366097196,1750060257331,-190.949883,0.00016752,2]
[366097197,1750060257341,-151.0,0.00016752,2]
[366097198,1750060257350,-190.949883,0.00016752,2]
[366097199,1750060257360,-151.0,0.00016752,2]
[366097200,1750060257370,-151.0,0.00016752,2]
[366097201,1750060257379,-151.0,0.00016752,2]
[366097202,1750060257389,-685.357316,0.00016752,2]
[366097203,1750060257398,-685.357316,0.00016752,2]
[366097204,1750060257407,-251.827914,0.00016752,2]
[366097205,1750060257420,-151.0,0.00016752,2]
[366097206,1750060257429,-251.827914,0.00016752,2]
[366097207,1750060257437,-151.0,0.00016752,2]
[366097208,1750060257446,-151.0,0.00016752,2]
[366097209,1750060257455,-151.0,0.00016752,2]
[366097210,1750060257465,-151.0,0.00016752,2]
[366097211,1750060257474,-36297.40793508,0.00016752,2]
[366097212,1750060257482,-839403.78514168,0.00016752,2]
[366097213,1750060257510,-526.64,0.00016752,2]
[366097214,1750060257541,-1676.12,0.00016602,2]
[366097215,1750060257550,-560.9138676,0.00016752,2]
[366097216,1750060271513,201.0,0.00015308,2]
[366097217,1750060292402,167.79,0.00015753,2]
[366097218,1750060318086,204.22214917,0.00016,2]
[366097252,1750060363027,2853.41305229,2.47e-05,120]
[366097253,1750060377501,186.37,0.00015676,2]
[366097254,1750060378220,186.37,0.0001568,2]
[366097255,1750060378295,186.37,0.00015685,2]
[366097256,1750060378466,186.37,0.00015689,2]
[366097257,1750060378531,186.37,0.00015693,2]
[366097258,1750060378609,186.37,0.00015697,2]
[366097259,1750060378766,186.37,0.00015701,2]
[366097260,1750060378997,186.37,0.00015705,2]
[366097261,1750060379211,186.37,0.00015709,2]
[366097262,1750060379437,186.37,0.00015714,2]
[366097263,1750060379834,186.37,0.00015718,2]
[366097264,1750060380062,186.37,0.00015722,2]
[366097265,1750060380312,186.37,0.00015726,2]
[366097266,1750060380699,186.37,0.0001573,2]
[366097267,1750060380924,186.37,0.00015734,2]
[366097268,1750060381526,186.37,0.00015738,2]
[366097269,1750060381596,186.37,0.00015742,2]
[366097270,1750060381652,186.37,0.00015747,2]
[366097271,1750060381765,186.37,0.00015751,2]
[366097272,1750060381983,186.37,0.00015755,2]
[366097275,1750060479709,250.0,0.00015643,2]
[366097276,1750060839271,200.0,0.00015558,2]
[366097278,1750060882937,151.8,0.00013699,2]
[366097279,1750060917302,476.21,0.00015514,2]
[366097280,1750060932812,203.0,0.00015938,2]
[366097281,1750061112579,1000.0,0.00015511,2]
[366097282,1750061118574,150.0,0.0001509,2]
[366097283,1750061153377,197.68,0.00015501,2]
[366097294,1750061244569,200.0,0.000159,5]
[366097295,1750061246665,500.0,0.00016,5]
[366097296,1750061251833,269.81,0.00015531,2]
[366097299,1750061355642,100556.78049683,0.00015,2]
[366097300,1750061355672,7065.11978007,0.00015,2]
[366097301,1750061355696,20000.0,0.00015,2]
[366097302,1750061355721,20000.0,0.00015,2]
[366097303,1750061355746,20000.0,0.00015,2]
[366097304,1750061355770,20000.0,0.00015,2]
[366097305,1750061355797,20000.0,0.00015,2]
[366097306,1750061355826,20000.0,0.00015,2]
[366097307,1750061355851,20000.0,0.00015,2]
[366097308,1750061355875,20000.0,0.00015,2]
[366097309,1750061355901,20000.0,0.00015,2]
[366097310,1750061355925,20000.0,0.00015,2]
[366097311,1750061355949,20000.0,0.00015,2]
[366097312,1750061355974,20000.0,0.00015,2]
[366097313,1750061356000,20000.0,0.00015,2]
[366097314,1750061356024,20000.0,0.00015,2]
[366097315,1750061356051,20000.0,0.00015,2]
[366097316,1750061356076,20000.0,0.00015,2]
[366097317,1750061356100,20000.0,0.00015,2]
[366097318,1750061356124,20000.0,0.00015,2]
[366097319,1750061356148,20000.0,0.00015,2]
[366097320,1750061356172,20000.0,0.00015,2]
[366097321,1750061356196,20000.0,0.00015,2]
[366097322,1750061356222,20000.0,0.00015,2]
[366097323,1750061356246,20000.0,0.00015,2]
[366097324,1750061356269,20000.0,0.00015,2]
[366097325,1750061356293,20000.0,0.00015,2]
[366097326,1750061356318,20000.0,0.00015,2]
[366097327,1750061356343,20000.0,0.00015,2]
[366097328,1750061356368,20000.0,0.00015,2]
[366097329,1750061356394,20000.0,0.00015,2]
[366097330,1750061356417,20000.0,0.00015,2]
[366097331,1750061356443,20000.0,0.00015,2]
[366097332,1750061356468,20000.0,0.00015,2]
[366097333,1750061356493,20000.0,0.00015,2]
[366097334,1750061356517,20000.0,0.00015,2]
[366097335,1750061356542,20000.0,0.00015,2]
[366097336,1750061356567,20000.0,0.00015,2]
[366097337,1750061356591,20000.0,0.00015,2]
[366097338,1750061356614,20000.0,0.00015,2]
[366097339,1750061356639,20000.0,0.00015,2]
[366097340,1750061356662,20000.0,0.00015,2]
[366097341,1750061356689,59565.29433805,0.00015,2]
[366097344,1750061431987,-362.561,0.000161,5]
[366097345,1750061432000,-337.439,0.000161,5]
[366097346,1750061432010,-500.0,0.00016138,2]
[366097347,1750061432022,-91.224573,0.00016138,2]
[366097371,1750061432512,-408.775427,0.00016138,2]
[366097373,1750061432522,-1000.0,0.000162,5]
[366097374,1750061432533,-250.0,0.00016238,2]
[366097376,1750061432543,-305.91,0.00016238,2]
[366097378,1750061432558,-304.18,0.00016238,2]
[366097380,1750061432568,-1200.0,0.00016258,2]
[366097382,1750061432579,-897.20683317,0.00016259,2]
[366097385,1750061432591,-1039.92069114,0.00016265,2]
[366097387,1750061432602,-1200.0,0.000163,5]
[366097389,1750061432612,-300.0,0.00016314,2]
[366097391,1750061432623,-203.0,0.00016315,2]
[366097393,1750061432634,-200.0,0.00016315,2]
[366097395,1750061432647,-2159.23904379,0.00016328,2]
[366097397,1750061432658,-207.4,0.00016328,2]
[366097399,1750061432669,-300.0,0.00016337,2]
[366097401,1750061432680,-213.68782342,0.00016338,2]
[366097403,1750061432691,-547.98701072,0.00016338,2]
[366097404,1750061432703,-169.87767288,0.00016338,2]
[366097405,1750061432714,-3635.83096882,0.00016338,2]
[366097406,1750061432725,-166.56650281,0.00016338,2]
[366097407,1750061432736,-166.24109175,0.00016338,2]
[366097408,1750061432747,-214.39860607,0.00016338,2]
[366097409,1750061432757,-3499.41051192,0.00016338,2]
[366097410,1750061432768,-5000.0,0.00016338,2]
[366097411,1750061432779,-150.0,0.00016365,2]
[366097412,1750061432790,-3635.83096873,0.00016393,2]
[366097413,1750061432803,-200.0,0.000164,5]
[366097414,1750061432814,-214.39860607,0.0001642,2]
[366097415,1750061432824,-200.0,0.00016426,2]
[366097416,1750061432834,-1426.14,0.00016427,2]
[366097417,1750061432844,-160.86330742,0.00016427,2]
[366097418,1750061432858,-151.0,0.00016428,2]
[366097419,1750061432868,-447.04644017,0.00016428,2]
[366097420,1750061432878,-500.0,0.00016428,2]
[366097421,1750061432888,-200.02597362,0.00016428,2]
[366097422,1750061432899,-700.66424367,0.0001643,2]
[366097423,1750061432909,-251.05753186,0.00016437,2]
[366097424,1750061432919,-183.17927396,0.00016437,2]
[366097425,1750061432930,-581.31509747,0.00016437,2]
[366097426,1750061432941,-500.0,0.00016438,2]
[366097427,1750061432951,-500.0,0.00016438,2]
[366097428,1750061432960,-500.0,0.00016438,2]
[366097429,1750061432970,-500.0,0.00016438,2]
[366097430,1750061432980,-500.0,0.00016438,2]
[366097431,1750061432990,-500.0,0.00016438,2]
[366097432,1750061433000,-500.0,0.00016438,2]
[366097433,1750061433009,-547.39337473,0.00016438,2]
[366097434,1750061433019,-500.0,0.00016438,2]
[366097435,1750061433029,-490.0,0.00016438,2]
[366097436,1750061433039,-300.0,0.00016438,2]
[366097437,1750061433050,-490.0,0.00016438,2]
[366097438,1750061433060,-766.71,0.00016438,2]
[366097439,1750061433071,-725.66,0.00016438,2]
[366097440,1750061433081,-490.0,0.00016438,2]
[366097441,1750061433092,-903.73,0.00016438,2]
[366097443,1750061433102,-950.33,0.00016438,2]
[366097445,1750061433112,-490.0,0.00016438,2]
[366097447,1750061433123,-490.0,0.00016438,2]
[366097449,1750061433134,-610.82,0.00016438,2]
[366097451,1750061433144,-579.18,0.00016438,2]
[366097453,1750061433154,-521.94,0.00016438,2]
[366097454,1750061433165,-490.0,0.00016438,2]
[366097455,1750061433175,-1195.76,0.00016438,2]
[366097456,1750061433186,-490.0,0.00016438,2]
[366097457,1750061433196,-490.0,0.00016438,2]
[366097458,1750061433206,-621.28674808,0.00016438,2]
[366097459,1750061433216,-490.0,0.00016438,2]
[366097460,1750061433226,-490.0,0.00016438,2]
[366097461,1750061433237,-490.0,0.00016438,2]
[366097462,1750061433247,-490.0,0.00016438,2]
[366097463,1750061433258,-520.05,0.00016438,2]
[366097464,1750061433269,-1408.51,0.00016438,2]
[366097465,1750061433279,-490.0,0.00016438,2]
[366097466,1750061433289,-490.0,0.00016438,2]
[366097467,1750061433301,-490.0,0.00016438,2]
[366097468,1750061433311,-673.4,0.00016438,2]
[366097469,1750061433321,-490.0,0.00016438,2]
[366097470,1750061433332,-490.0,0.00016438,2]
[366097471,1750061433342,-548.87,0.00016438,2]
[366097472,1750061433352,-491.5898332,0.00016438,2]
[366097473,1750061433362,-490.0,0.00016438,2]
[366097474,1750061433372,-490.0,0.00016438,2]
[366097475,1750061433382,-764.98,0.00016438,2]
[366097476,1750061433392,-490.0,0.00016438,2]
[366097477,1750061433401,-490.0,0.00016438,2]
[366097478,1750061433412,-490.0,0.00016438,2]
[366097479,1750061433422,-490.0,0.00016438,2]
[366097480,1750061433433,-1562.61,0.00016438,2]
[366097481,1750061433443,-490.0,0.00016438,2]
[366097482,1750061433454,-490.0,0.00016438,2]
[366097483,1750061433465,-490.0,0.00016438,2]
[366097484,1750061433476,-529.6,0.00016438,2]
[366097485,1750061433486,-490.0,0.00016438,2]
[366097486,1750061433507,-490.0,0.00016438,2]
[366097487,1750061433521,-490.0,0.00016438,2]
[366097488,1750061433532,-490.0,0.00016438,2]
[366097489,1750061433543,-490.0,0.00016438,2]
[366097490,1750061433556,-490.0,0.00016438,2]
[366097491,1750061433568,-650.5,0.00016438,2]
[366097492,1750061433578,-490.0,0.00016438,2]
[366097493,1750061433590,-490.0,0.00016438,2]
[366097494,1750061433600,-490.0,0.00016438,2]
[366097495,1750061433611,-490.0,0.00016438,2]
[366097496,1750061433622,-490.0,0.00016438,2]
[366097497,1750061433633,-490.0,0.00016438,2]
[366097498,1750061433644,-687.6,0.00016438,2]
[366097499,1750061433654,-490.0,0.00016438,2]
[366097500,1750061433665,-490.0,0.00016438,2]
[366097501,1750061433675,-643.59,0.00016438,2]
[366097502,1750061433686,-532.35,0.00016438,2]
[366097503,1750061433697,-490.0,0.00016438,2]
[366097504,1750061433709,-902.37,0.00016438,2]
[366097505,1750061433719,-490.0,0.00016438,2]
[366097506,1750061433729,-490.0,0.00016438,2]
[366097507,1750061433739,-490.0,0.00016438,2]
[366097508,1750061433749,-300.0,0.00016438,2]
[366097509,1750061433759,-18.11126841,0.00016438,2]
[366097510,1750061433897,-471.88873159,0.00016438,2]
[366097511,1750061433907,-490.0,0.00016438,2]
[366097512,1750061433918,-490.0,0.00016438,2]
[366097513,1750061433930,-490.0,0.00016438,2]
[366097514,1750061433941,-490.0,0.00016438,2]
[366097515,1750061433952,-971.32,0.00016438,2]
[366097516,1750061433962,-490.0,0.00016438,2]
[366097517,1750061433972,-490.0,0.00016438,2]
[366097518,1750061433982,-1310.34,0.00016438,2]
[366097519,1750061433992,-490.0,0.00016438,2]
[366097520,1750061434003,-1609.63,0.00016438,2]
[366097521,1750061434014,-752.79,0.00016438,2]
[366097522,1750061434024,-521.37,0.00016438,2]
[366097523,1750061434035,-490.0,0.00016438,2]
[366097524,1750061434045,-1177.87,0.00016438,2]
[366097525,1750061434056,-490.0,0.00016438,2]
[366097526,1750061434067,-490.0,0.00016438,2]
[366097527,1750061434078,-490.0,0.00016438,2]
[366097528,1750061434089,-666.62,0.00016438,2]
[366097529,1750061434099,-490.0,0.00016438,2]
[366097530,1750061434109,-490.0,0.00016438,2]
[366097531,1750061434120,-383.68625239,0.00016438,2]
[366097532,1750061434130,-490.0,0.00016438,2]
[366097533,1750061434141,-490.0,0.00016438,2]
[366097534,1750061434151,-1378.2,0.00016438,2]
[366097535,1750061434161,-490.0,0.00016438,2]
[366097536,1750061434171,-682.62,0.00016438,2]
[366097537,1750061434181,-490.0,0.00016438,2]
[366097538,1750061434191,-1315.41,0.00016438,2]
[366097539,1750061434202,-490.0,0.00016438,2]
[366097540,1750061434213,-446.00455581,0.00016438,2]
[366097541,1750061434223,-661.81,0.00016438,2]
[366097542,1750061434233,-992.73,0.00016438,2]
[366097543,1750061434243,-490.0,0.00016438,2]
[366097544,1750061434253,-512.69,0.00016438,2]
[366097545,1750061434264,-490.0,0.00016438,2]
[366097546,1750061434274,-1092.93,0.00016438,2]
[366097547,1750061434284,-490.0,0.00016438,2]
[366097548,1750061434295,-490.0,0.00016438,2]
[366097549,1750061434306,-250.0,0.00016438,2]
[366097550,1750061434317,-1062.93,0.00016438,2]
[366097551,1750061434327,-1353.94,0.00016438,2]
[366097552,1750061434337,-564.27,0.00016438,2]
[366097553,1750061434347,-490.0,0.00016438,2]
[366097554,1750061434357,-490.0,0.00016438,2]
[366097555,1750061434368,-490.0,0.00016438,2]
[366097556,1750061434378,-490.0,0.00016438,2]
[366097557,1750061434389,-1539.52,0.00016438,2]
[366097558,1750061434399,-490.0,0.00016438,2]
[366097559,1750061434409,-737.58,0.00016438,2]
[366097560,1750061434419,-490.0,0.00016438,2]
[366097561,1750061434431,-596.56,0.00016438,2]
[366097562,1750061434442,-490.0,0.00016438,2]
[366097563,1750061434452,-490.0,0.00016438,2]
[366097564,1750061434462,-490.0,0.00016438,2]
[366097565,1750061434473,-490.0,0.00016438,2]
[366097566,1750061434483,-490.0,0.00016438,2]
[366097567,1750061434494,-490.0,0.00016438,2]
[366097568,1750061434505,-892.95,0.00016438,2]
[366097569,1750061434516,-490.0,0.00016438,2]
[366097570,1750061434526,-490.0,0.00016438,2]
[366097571,1750061434539,-490.0,0.00016438,2]
[366097572,1750061434555,-490.0,0.00016438,2]
[366097573,1750061434565,-490.0,0.00016438,2]
[366097574,1750061434575,-722.11,0.00016438,2]
[366097575,1750061434585,-490.0,0.00016438,2]
[366097576,1750061434595,-490.0,0.00016438,2]
[366097577,1750061434605,-490.0,0.00016438,2]
[366097578,1750061434615,-490.0,0.00016438,2]
[366097579,1750061434626,-579.66,0.00016438,2]
[366097580,1750061434637,-549.06,0.00016438,2]
[366097581,1750061434647,-490.0,0.00016438,2]
[366097582,1750061434658,-578.33,0.00016438,2]
[366097583,1750061434667,-603.15,0.00016438,2]
[366097584,1750061434677,-1044.96,0.00016438,2]
[366097585,1750061434687,-544.48,0.00016438,2]
[366097586,1750061434697,-490.0,0.00016438,2]
[366097587,1750061434707,-490.0,0.00016438,2]
[366097588,1750061434717,-490.0,0.00016438,2]
[366097589,1750061434727,-490.0,0.00016438,2]
[366097590,1750061434737,-490.0,0.00016438,2]